bitfinex/quotes_BTCUSD_20260215
["timestamp","ask_amount","ask_price","bid_price","bid_amount"]
[1771166042789,0.005436,69044.0,69042.0,0.27524928]
[1771166042996,0.005436,69044.0,69019.0,0.22535372]
[1771166043203,0.005436,69044.0,69018.0,0.03732226]
[1771166043204,0.23474234,69037.0,69018.0,0.03732226]
[1771166043537,0.07242298,69039.0,69018.0,0.26267598]
[1771166043781,0.23474234,69038.0,69018.0,0.03732226]
[1771166044036,0.23474234,69038.0,69018.0,0.03775397]
[1771166044252,0.07242493,69037.0,69019.0,0.22535372]
[1771166044470,0.07242694,69036.0,69019.0,0.22535372]
[1771166044683,0.23474234,69036.0,69019.0,0.00709378]
[1771166044900,0.02361045,69042.0,69019.0,0.2324475]
[1771166045167,0.02361045,69039.0,69019.0,0.2324475]
[1771166045364,0.02361045,69038.0,69019.0,0.2324475]
[1771166045517,0.07242271,69040.0,69019.0,0.2324475]
[1771166045723,0.02361045,69037.0,69019.0,0.2324475]
[1771166045927,0.02361045,69037.0,69021.0,0.22535372]
[1771166046478,0.005436,69044.0,69021.0,0.22535372]
[1771166046816,0.28784,69060.0,69026.0,0.22535372]
[1771166046817,0.23474234,69059.0,69026.0,0.22535372]
[1771166047026,0.02361045,69051.0,69029.0,0.0233062]
[1771166047263,0.02361045,69051.0,69031.0,0.0233062]
[1771166047483,0.02361045,69051.0,69034.0,0.22535372]
[1771166047690,0.02361045,69059.0,69020.0,0.0233062]
[1771166047935,0.23474234,69047.0,69021.0,0.22535372]
[1771166048157,0.07240653,69055.0,69025.0,0.07243681]
[1771166048358,0.07240653,69055.0,69046.0,4e-05]
[1771166048359,4e-05,69050.0,69046.0,4e-05]
[1771166048579,0.02365045,69050.0,69046.0,4e-05]
[1771166049546,0.02365045,69050.0,69046.0,0.00011494]
[1771166050168,4e-05,69050.0,69046.0,0.00011494]
[1771166050573,4e-05,69050.0,69042.0,4e-05]
[1771166050574,0.02361045,69049.0,69042.0,4e-05]
[1771166050747,0.02361045,69049.0,69042.0,0.00015867]
[1771166053289,0.02361045,69049.0,69042.0,0.00035867]
[1771166053493,4e-05,69050.0,69042.0,0.00035867]
[1771166056853,4e-05,69050.0,69043.0,0.22500791]
[1771166056995,4e-05,69050.0,69043.0,0.24927152]
[1771166057607,0.29736,69067.0,69050.0,4e-05]
[1771166057808,0.02251733,69061.0,69050.0,4e-05]
[1771166058034,0.02251733,69059.0,69050.0,4e-05]
[1771166059706,0.09268,69062.0,69050.0,4e-05]
[1771166060322,0.09268,69062.0,69052.0,0.22500791]
[1771166060526,0.09268,69062.0,69053.0,0.02426361]
[1771166060871,0.0004,69059.0,69053.0,0.02426361]
[1771166063232,0.0004,69059.0,69058.0,4e-05]
[1771166064058,0.0004,69059.0,69048.0,4e-05]
[1771166064236,0.02251733,69052.0,69035.0,0.0002]
[1771166064437,0.02251733,69051.0,69035.0,0.0002]
[1771166064632,0.02251733,69051.0,69035.0,0.02446361]
[1771166065265,0.09492824,69051.0,69035.0,0.02446361]
[1771166065473,0.07241204,69050.0,69035.0,0.02446361]
[1771166065806,4e-05,69054.0,69043.0,0.02426361]
[1771166066039,4e-05,69054.0,69045.0,0.02426361]
[1771166066251,4e-05,69058.0,69045.0,0.02426361]
[1771166066485,4e-05,69058.0,69047.0,0.22500791]
[1771166066618,4e-05,69058.0,69048.0,0.02426361]
[1771166067954,0.00029147,69059.0,69048.0,0.02430361]
[1771166069989,4e-05,69062.0,69050.0,0.02434361]
[1771166070200,4e-05,69062.0,69053.0,0.22500791]
[1771166070423,4e-05,69062.0,69056.0,0.02426361]
[1771166071039,0.0004,69060.0,69057.0,0.22500791]
[1771166071242,0.0004,69060.0,69050.0,8e-05]
[1771166071438,0.0004,69060.0,69051.0,0.02426361]
[1771166072366,4e-05,69064.0,69060.0,0.0004]
[1771166072570,4e-05,69064.0,69060.0,0.02466361]
[1771166073118,4e-05,69064.0,69060.0,0.0004]
[1771166074678,4e-05,69064.0,69061.0,0.02426361]
[1771166075137,4e-05,69064.0,69057.0,0.24927152]
[1771166076293,4e-05,69064.0,69058.0,0.02426361]
[1771166076486,4e-05,69064.0,69058.0,0.22500791]
[1771166076692,4e-05,69064.0,69060.0,0.02426361]
[1771166077168,0.0003621,69068.0,69062.0,0.02426361]
[1771166077814,4e-05,69070.0,69068.0,0.0003621]
[1771166078017,0.0003021,69073.0,69068.0,0.0003621]
[1771166078257,4e-05,69080.0,69069.0,0.02426361]
[1771166078454,4e-05,69080.0,69071.0,0.02426361]
[1771166078676,0.02251733,69079.0,69066.0,4e-05]
[1771166079050,0.02264638,69079.0,69066.0,4e-05]
[1771166079685,0.0224847,69079.0,69066.0,4e-05]
[1771166081987,0.0224847,69079.0,69066.0,0.02430361]
[1771166082199,0.0004,69073.0,69066.0,0.02430361]
[1771166082412,3.79e-05,69073.0,69066.0,0.02430361]
[1771166084068,3.79e-05,69073.0,69067.0,0.21236322]
[1771166084299,3.79e-05,69073.0,69070.0,0.02378173]
[1771166084523,3.79e-05,69073.0,69071.0,0.02378173]
[1771166085191,0.00012905,69079.0,69066.0,0.21240322]
[1771166085400,0.02428434,69079.0,69066.0,4e-05]
[1771166086766,0.02412268,69079.0,69066.0,4e-05]
[1771166088453,0.21717247,69079.0,69066.0,4e-05]
[1771166088606,0.02415529,69078.0,69066.0,4e-05]
[1771166089241,0.21717247,69078.0,69066.0,4e-05]
[1771166089444,0.02415529,69077.0,69066.0,4e-05]
[1771166093357,0.02415529,69077.0,69076.0,4e-05]
[1771166093732,0.0004,69078.0,69076.0,4e-05]
[1771166094111,0.02455529,69078.0,69076.0,4e-05]
[1771166094523,0.02439361,69078.0,69054.0,4e-05]
[1771166094730,0.02415529,69075.0,69062.0,0.00024]
[1771166100105,0.02455529,69075.0,69062.0,0.00024]
[1771166100435,0.0004,69075.0,69065.0,0.02378173]
[1771166100663,0.0004,69075.0,69062.0,0.00024]
[1771166100664,4e-05,69076.0,69068.0,0.21236322]
[1771166100796,0.00023832,69078.0,69070.0,0.02378173]
[1771166101015,4e-05,69086.0,69071.0,0.21236322]
[1771166101215,0.11557669,69100.0,69071.0,0.21236322]
[1771166101216,4e-05,69100.0,69081.0,0.02378173]
[1771166101416,4e-05,69100.0,69084.0,0.21236322]
[1771166101755,4e-05,69100.0,69088.0,0.02378173]
[1771166103837,4e-05,69100.0,69083.0,0.21236322]
[1771166104053,0.02415529,69093.0,69076.0,4e-05]
[1771166104254,0.21717247,69099.0,69076.0,4e-05]
[1771166104451,0.02415529,69085.0,69076.0,4e-05]
[1771166105982,0.21717247,69081.0,69070.0,4e-05]
[1771166106184,0.02415529,69080.0,69070.0,4e-05]
[1771166106386,0.02419529,69080.0,69060.0,0.02382173]
[1771166106588,0.00016934,69080.0,69067.0,0.21236322]
[1771166106789,0.00016934,69080.0,69067.0,0.23614495]
[1771166108071,0.00016934,69080.0,69067.0,0.02378173]
[1771166108279,0.00016934,69080.0,69066.0,0.00024]
[1771166108280,0.02415529,69079.0,69076.0,4e-05]
[1771166108506,0.02415529,69078.0,69068.0,4e-05]
[1771166109469,0.02415529,69076.0,69068.0,4e-05]
[1771166113207,0.21738181,69080.0,69068.0,4e-05]
[1771166113208,0.02415529,69075.0,69068.0,4e-05]
[1771166116190,0.02399357,69075.0,69068.0,4e-05]
[1771166120794,0.00020934,69080.0,69068.0,0.02400508]
[1771166121595,0.02283042,69080.0,69068.0,4e-05]
[1771166123253,0.02283042,69080.0,69078.0,4e-05]
[1771166123254,0.01283042,69080.0,69078.0,4e-05]
[1771166123456,0.01283042,69080.0,69074.0,4e-05]
[1771166126025,4e-05,69082.0,69074.0,4e-05]
[1771166126232,0.02328733,69090.0,69077.0,0.19826345]
[1771166126233,0.00044,69090.0,69077.0,0.19826345]
[1771166126435,0.00044,69090.0,69082.0,0.19826345]
[1771166126639,0.00044,69090.0,69083.0,0.02409441]
[1771166126846,0.00012,69090.0,69083.0,0.02409441]
[1771166127050,0.07276387,69097.0,69085.0,0.02409441]
[1771166127051,0.0004,69097.0,69085.0,0.02409441]
[1771166127472,0.0004,69097.0,69080.0,4e-05]
[1771166127685,0.0004,69097.0,69076.0,4e-05]
[1771166127686,0.07238109,69079.0,69076.0,4e-05]
[1771166127894,4e-05,69088.0,69070.0,8e-05]
[1771166127895,0.02284733,69081.0,69070.0,8e-05]
[1771166128100,0.07238106,69079.0,69070.0,0.00020934]
[1771166128719,0.02284733,69080.0,69070.0,0.00020934]
[1771166128720,0.0952275,69080.0,69070.0,0.00020934]
[1771166129552,0.02284733,69080.0,69070.0,0.00020934]
[1771166130285,0.07241794,69082.0,69070.0,0.00020934]
[1771166131718,4e-05,69082.0,69070.0,0.00020934]
[1771166132555,0.07238062,69080.0,69071.0,0.02409441]
[1771166132960,0.07237914,69081.0,69071.0,0.02409441]
[1771166133578,0.07237914,69081.0,69070.0,0.00016934]
[1771166136402,0.07277914,69081.0,69070.0,0.00016934]
[1771166136667,0.0004,69081.0,69070.0,0.00016934]
[1771166136812,4e-05,69084.0,69070.0,0.00016934]
[1771166136813,4e-05,69084.0,69075.0,0.19826345]
[1771166137054,4e-05,69084.0,69070.0,0.00016934]
[1771166137055,4e-05,69084.0,69078.0,0.02409441]
[1771166138330,4e-05,69084.0,69080.0,4e-05]
[1771166138866,4e-05,69084.0,69080.0,0.02413441]
[1771166139892,0.07241594,69084.0,69080.0,4e-05]
[1771166140091,4e-05,69084.0,69080.0,4e-05]
[1771166145413,4e-05,69084.0,69074.0,0.19830345]
[1771166145414,0.02316725,69082.0,69066.0,0.00024]
[1771166145614,0.02316725,69082.0,69054.0,0.0002]
[1771166145615,0.02316725,69075.0,69059.0,0.02517542]
[1771166145852,0.07238675,69074.0,69059.0,0.02517542]
[1771166146259,0.07238613,69074.0,69063.0,0.0002]
[1771166147449,0.0723875,69073.0,69063.0,0.0002]
[1771166147847,0.07238633,69074.0,69063.0,0.0002]
[1771166148701,0.07238729,69073.0,69063.0,0.0002]
[1771166148902,0.07238803,69074.0,69063.0,0.0002]
[1771166149099,0.07238788,69073.0,69063.0,0.0002]
[1771166149408,0.07238824,69072.0,69063.0,0.0002]
[1771166149610,0.07238814,69073.0,69063.0,0.0002]
[1771166149944,0.0723875,69073.0,69063.0,0.0002]
[1771166150119,0.07238727,69073.0,69063.0,0.0002]
[1771166150695,0.07238803,69074.0,69063.0,0.0002]
[1771166151207,0.09555263,69075.0,69063.0,0.0002]
[1771166151602,0.07238538,69075.0,69063.0,0.02517542]
[1771166152881,0.0724262,69074.0,69063.0,0.02517542]
[1771166153187,0.07255554,69074.0,69070.0,4e-05]
[1771166154746,0.02316725,69073.0,69070.0,4e-05]
[1771166155110,0.0725563,69074.0,69070.0,4e-05]
[1771166155333,0.00016934,69074.0,69063.0,0.00016]
[1771166155542,0.00016934,69074.0,69042.0,0.0002]
[1771166155543,0.19593806,69062.0,69048.0,0.0002]
[1771166155866,0.07240539,69056.0,69048.0,0.0002]
[1771166156473,0.07240263,69059.0,69048.0,0.0002]
[1771166156474,0.07240431,69057.0,69048.0,0.0002]
[1771166157224,0.07240431,69057.0,69049.0,0.0002]
[1771166157647,0.07240562,69056.0,69049.0,0.0002]
[1771166158697,0.36030838,69104.0,69049.0,0.0002]
[1771166158698,0.07240856,69053.0,69049.0,0.0002]
[1771166158952,0.02316725,69053.0,69049.0,0.0002]
[1771166159168,0.09557199,69057.0,69049.0,0.0002]
[1771166159297,0.07240674,69055.0,69049.0,0.0002]
[1771166159742,0.07240633,69055.0,69049.0,0.0002]
[1771166160350,0.07240906,69053.0,69049.0,0.0002]
[1771166160678,0.07240979,69052.0,69049.0,0.0002]
[1771166160873,0.07240906,69053.0,69049.0,0.0002]
[1771166161120,0.0724104,69051.0,69049.0,0.0002]
[1771166161510,0.0724104,69051.0,69042.0,0.0002]
[1771166161744,0.09557577,69053.0,69045.0,0.00031867]
[1771166161745,0.07240994,69052.0,69045.0,0.00031867]
[1771166161890,0.09557577,69053.0,69045.0,0.00031867]
[1771166162096,0.02316725,69053.0,69045.0,0.00031867]
[1771166162304,0.2896144,69058.0,69045.0,0.00031867]
[1771166162305,0.0724027,69059.0,69045.0,0.02529409]
[1771166162519,0.07240319,69058.0,69045.0,0.02529409]
[1771166163471,0.0724041,69057.0,69045.0,0.02529409]
[1771166164584,0.0724041,69057.0,69049.0,0.0002]
[1771166165547,0.07240707,69055.0,69049.0,0.0002]
[1771166165749,0.02316725,69053.0,69049.0,0.0002]
[1771166165954,0.07240578,69056.0,69049.0,0.0002]
[1771166166896,0.07240991,69052.0,69049.0,0.0002]
[1771166167046,0.07240994,69052.0,69045.0,0.00031867]
[1771166167247,0.07240994,69052.0,69040.0,0.02523362]
[1771166167248,0.28960889,69059.0,69040.0,0.02523362]
[1771166167249,4e-05,69068.0,69040.0,0.0002582]
[1771166167445,0.09558229,69047.0,69040.0,0.0002582]
[1771166167644,0.02316725,69047.0,69040.0,0.0002582]
[1771166167901,0.28961739,69057.0,69040.0,0.0002582]
[1771166167902,0.02316725,69069.0,69042.0,0.02497542]
[1771166168075,4e-05,69074.0,69046.0,0.02497542]
[1771166168076,0.07253711,69064.0,69046.0,0.02497542]
[1771166168278,4e-05,69060.0,69056.0,4e-05]
[1771166168931,0.00013988,69064.0,69056.0,4e-05]
[1771166169076,0.00013988,69064.0,69058.0,0.02497542]
[1771166169513,4e-05,69068.0,69058.0,0.02497542]
[1771166169703,4e-05,69078.0,69066.0,0.02497542]
[1771166169901,4e-05,69078.0,69064.0,4e-05]
[1771166169902,4e-05,69078.0,69068.0,0.21182984]
[1771166170112,4e-05,69076.0,69069.0,0.02497542]
[1771166171389,0.11580571,69102.0,69074.0,0.02497542]
[1771166171390,4e-05,69090.0,69074.0,0.02497542]
[1771166171554,4e-05,69090.0,69072.0,4e-05]
[1771166171555,0.0004,69097.0,69082.0,0.02497542]
[1771166171755,0.0004,69097.0,69085.0,0.18685442]
[1771166171961,0.0004,69097.0,69088.0,0.02497542]
[1771166172505,0.0004,69097.0,69070.0,8e-05]
[1771166172506,0.02316725,69085.0,69070.0,8e-05]
[1771166172703,0.02329657,69085.0,69070.0,8e-05]
[1771166172904,0.0004,69080.0,69072.0,0.02501542]
[1771166173125,4e-05,69090.0,69073.0,0.02497542]
[1771166173325,4e-05,69090.0,69076.0,0.18559457]
[1771166173531,4e-05,69090.0,69079.0,0.02487265]
[1771166173705,0.0004,69087.0,69080.0,0.02487265]
[1771166174683,4e-05,69090.0,69081.0,0.18559457]
[1771166174902,0.09276,69098.0,69082.0,0.02487265]
[1771166175104,0.09276,69098.0,69084.0,0.02487265]
[1771166175354,0.09276,69098.0,69084.0,0.18559457]
[1771166175505,0.09276,69098.0,69085.0,0.02487265]
[1771166177126,0.09276,69098.0,69086.0,0.02487265]
[1771166178533,0.09276,69098.0,69087.0,0.18559457]
[1771166178720,0.09276,69098.0,69088.0,0.02487265]
[1771166179293,0.07235595,69103.0,69088.0,0.02487265]
[1771166179294,0.07235627,69103.0,69088.0,0.02487265]
[1771166179829,0.07235627,69103.0,69080.0,4e-05]
[1771166179830,0.02350424,69114.0,69092.0,0.02487265]
[1771166180036,0.07274294,69116.0,69103.0,0.02487265]
[1771166180037,0.0004,69116.0,69103.0,0.02487265]
[1771166180671,0.0004,69104.0,69103.0,0.02487265]
[1771166180882,0.0004,69116.0,69103.0,0.02487265]
[1771166181208,0.0004,69111.0,69103.0,0.02487265]
[1771166181809,0.0004,69111.0,69100.0,4e-05]
[1771166181810,0.0004,69111.0,69100.0,0.02491265]
[1771166188083,0.02350424,69109.0,69096.0,4e-05]
[1771166188301,4e-05,69110.0,69096.0,4e-05]
[1771166188302,0.02354424,69110.0,69096.0,4e-05]
[1771166188530,4e-05,69110.0,69099.0,0.02487265]
[1771166189306,4e-05,69110.0,69102.0,0.02487265]
[1771166189930,4e-05,69110.0,69096.0,4e-05]
[1771166189931,0.02350424,69108.0,69096.0,4e-05]
[1771166190138,0.02350424,69107.0,69096.0,4e-05]
[1771166191256,0.07235165,69107.0,69096.0,4e-05]
[1771166191455,0.20020583,69104.0,69096.0,4e-05]
[1771166191657,0.02350424,69103.0,69096.0,4e-05]
[1771166193216,0.20020583,69102.0,69092.0,4e-05]
[1771166193485,0.20020583,69102.0,69088.0,4e-05]
[1771166193486,0.20020583,69099.0,69088.0,4e-05]
[1771166193670,8e-05,69100.0,69088.0,4e-05]
[1771166193671,0.02350424,69098.0,69088.0,4e-05]
[1771166195287,0.02350424,69098.0,69088.0,0.00024]
[1771166195865,0.20024583,69104.0,69088.0,0.00024]
[1771166195866,4e-05,69106.0,69092.0,4e-05]
[1771166196033,0.0004,69107.0,69098.0,0.02487265]
[1771166196237,0.0004,69107.0,69099.0,0.02487265]
[1771166196443,0.0004,69107.0,69100.0,0.02487265]
[1771166197329,0.0004,69107.0,69096.0,4e-05]
[1771166197543,0.02350424,69105.0,69096.0,4e-05]
[1771166197762,0.02350424,69104.0,69096.0,4e-05]
[1771166198006,0.02350424,69104.0,69092.0,4e-05]
[1771166198007,0.02350424,69100.0,69092.0,4e-05]
[1771166198226,0.20020583,69101.0,69088.0,0.00024]
[1771166198227,0.2725677,69099.0,69090.0,4e-05]
[1771166198450,0.02350424,69097.0,69090.0,4e-05]
[1771166200589,4e-05,69100.0,69090.0,4e-05]
[1771166201297,4e-05,69102.0,69092.0,0.18559457]
[1771166201499,4e-05,69102.0,69093.0,0.02487265]
[1771166204304,0.19262914,69102.0,69090.0,8e-05]
[1771166204506,0.19258914,69099.0,69090.0,8e-05]
[1771166204875,0.02404273,69098.0,69090.0,8e-05]
[1771166207644,4e-05,69102.0,69090.0,8e-05]
[1771166207842,0.02408273,69102.0,69090.0,8e-05]
[1771166209321,4e-05,69102.0,69090.0,0.02383815]
[1771166210078,4e-05,69102.0,69090.0,8e-05]
[1771166210285,4e-05,69102.0,69086.0,4e-05]
[1771166210287,0.19258914,69097.0,69086.0,4e-05]
[1771166210496,4e-05,69098.0,69074.0,0.0002]
[1771166210497,0.07237324,69087.0,69074.0,0.0002]
[1771166210812,4e-05,69090.0,69074.0,0.0002]
[1771166210813,0.02404273,69080.0,69074.0,0.0002]
[1771166211637,0.02404273,69080.0,69074.0,0.00032932]
[1771166213349,0.02392273,69080.0,69074.0,0.00032932]
[1771166214383,0.19258914,69080.0,69070.0,0.0003161]
[1771166214533,0.02404273,69079.0,69070.0,0.0003161]
[1771166215350,0.02404273,69085.0,69074.0,0.0002]
[1771166215558,0.02417207,69085.0,69074.0,0.0002]
[1771166215737,0.00012934,69085.0,69075.0,0.02375815]
[1771166218205,0.29392,69096.0,69075.0,0.02375815]
[1771166218206,4e-05,69096.0,69075.0,0.0001551]
[1771166218409,4e-05,69096.0,69082.0,0.18717889]
[1771166218599,4e-05,69096.0,69085.0,0.02375815]
[1771166218792,4e-05,69096.0,69080.0,4e-05]
[1771166219006,0.02408273,69096.0,69080.0,4e-05]
[1771166219212,0.02408273,69096.0,69080.0,0.02379815]
[1771166220359,4e-05,69096.0,69081.0,0.18717889]
[1771166220501,8e-05,69100.0,69091.0,0.18717889]
[1771166220695,0.02444273,69107.0,69093.0,0.02375815]
[1771166220906,0.0004,69107.0,69094.0,0.02375815]
[1771166221533,0.0004,69107.0,69092.0,4e-05]
[1771166221534,0.0004,69107.0,69095.0,0.18717889]
[1771166221750,0.0004,69107.0,69092.0,4e-05]
[1771166221958,0.19262914,69102.0,69090.0,8e-05]
[1771166222143,4e-05,69102.0,69090.0,8e-05]
[1771166223424,4e-05,69100.0,69088.0,4e-05]
[1771166223669,4e-05,69100.0,69088.0,0.02379815]
[1771166224101,4e-05,69102.0,69090.0,0.02375815]
[1771166224306,0.00044,69104.0,69094.0,0.02375815]
[1771166224508,0.00044,69104.0,69092.0,4e-05]
[1771166224509,0.00044,69104.0,69096.0,0.02375815]
[1771166225678,0.0008713,69104.0,69096.0,0.02375815]
[1771166226379,0.0004,69107.0,69096.0,0.02375815]
[1771166226579,0.00052931,69107.0,69096.0,0.02379815]
[1771166227531,0.00052931,69107.0,69098.0,0.02375815]
[1771166228186,0.00052931,69107.0,69102.0,4e-05]
[1771166231100,0.00052931,69107.0,69102.0,0.02379815]
[1771166231385,0.00052931,69107.0,69096.0,4e-05]
[1771166231386,0.19258914,69103.0,69096.0,4e-05]
[1771166231562,0.02404273,69102.0,69090.0,4e-05]
[1771166231812,0.02404273,69102.0,69086.0,4e-05]
[1771166231813,0.19258914,69099.0,69086.0,4e-05]
[1771166231985,0.02404273,69098.0,69086.0,4e-05]
[1771166232239,4e-05,69100.0,69088.0,0.02379815]
[1771166233112,4e-05,69100.0,69090.0,0.21093704]
[1771166233309,4e-05,69100.0,69092.0,0.02490003]
[1771166238437,4e-05,69100.0,69092.0,0.02510003]
[1771166238898,4e-05,69100.0,69092.0,0.0002]
[1771166239108,0.02385421,69100.0,69092.0,0.0002]
[1771166239541,0.02385421,69100.0,69088.0,4e-05]
[1771166239542,0.20464711,69099.0,69088.0,4e-05]
[1771166239757,0.02381421,69096.0,69088.0,4e-05]
[1771166241027,0.01881421,69096.0,69088.0,4e-05]
[1771166243384,0.1808329,69096.0,69094.0,4e-05]
[1771166243610,0.02381421,69095.0,69094.0,4e-05]
[1771166245754,0.02381421,69095.0,69086.0,4e-05]
[1771166245755,0.02381421,69093.0,69086.0,4e-05]
[1771166245957,0.02381421,69092.0,69085.0,0.0002]
[1771166246166,0.02385421,69096.0,69085.0,5.292e-05]
[1771166247520,0.02385421,69096.0,69094.0,0.0002]
[1771166247720,0.02385421,69096.0,69094.0,5.296e-05]
[1771166247918,0.02385421,69096.0,69087.0,0.0002]
[1771166250555,0.1808329,69095.0,69087.0,0.0002]
[1771166250760,0.02381421,69094.0,69087.0,0.0002]
[1771166251102,4e-05,69096.0,69088.0,0.02490003]
[1771166251632,4e-05,69096.0,69089.0,0.17480586]
[1771166251946,4e-05,69096.0,69087.0,0.0002]
[1771166252148,0.02381421,69094.0,69087.0,0.0002]
[1771166252399,0.02381421,69093.0,69087.0,0.0002]
[1771166254311,4e-05,69096.0,69087.0,0.0002]
[1771166255488,4e-05,69096.0,69087.0,0.02510003]
[1771166255900,8e-05,69100.0,69089.0,0.02490003]
[1771166256094,8e-05,69100.0,69091.0,0.17480586]
[1771166256293,8e-05,69100.0,69092.0,0.02490003]
[1771166256721,8e-05,69100.0,69093.0,0.17480586]
[1771166256722,0.0004,69096.0,69093.0,0.17480586]
[1771166256922,0.0004,69096.0,69094.0,0.02490003]
[1771166258416,8e-05,69100.0,69094.0,0.02494003]
[1771166261624,4e-05,69104.0,69094.0,0.02494003]
[1771166261825,4e-05,69104.0,69094.0,0.17484586]
[1771166262058,4e-05,69104.0,69095.0,0.02490003]
[1771166262755,0.00052931,69107.0,69097.0,0.17480586]
[1771166262931,0.00052931,69107.0,69098.0,0.02490003]
[1771166266279,0.0004,69111.0,69100.0,0.16874704]
[1771166266630,0.0004,69111.0,69101.0,0.02341459]
[1771166267265,0.0004,69106.0,69101.0,0.02341459]
[1771166267934,0.0004,69106.0,69100.0,0.16887635]
[1771166267935,0.0004,69106.0,69103.0,0.02341459]
[1771166268620,0.0004,69111.0,69103.0,0.02341459]
[1771166270072,0.0004,69111.0,69100.0,0.00012931]
[1771166270283,0.0004,69111.0,69096.0,4e-05]
[1771166270284,0.02365059,69106.0,69096.0,4e-05]
[1771166270496,0.02365059,69105.0,69096.0,4e-05]
[1771166273282,0.18401734,69105.0,69104.0,4e-05]
[1771166273476,0.16036675,69103.0,69098.0,4e-05]
[1771166273727,0.02365059,69102.0,69087.0,0.0002]
[1771166276522,0.00050859,69106.0,69087.0,0.0002]
[1771166276725,0.02415918,69106.0,69087.0,0.0002]
[1771166277279,0.02415918,69106.0,69091.0,0.24937459]
[1771166278993,0.02415918,69106.0,69094.0,0.0001305]
[1771166280274,0.18452593,69106.0,69094.0,0.0001305]
[1771166280472,0.02365059,69105.0,69094.0,0.0001305]
[1771166280697,0.02365059,69105.0,69094.0,0.0003305]
[1771166281299,0.00050859,69106.0,69094.0,0.0003305]
[1771166281587,0.02365059,69124.0,69101.0,0.16874704]
[1771166281696,0.02371921,69124.0,69110.0,4e-05]
[1771166282107,0.02365059,69123.0,69110.0,4e-05]
[1771166282317,6.862e-05,69124.0,69113.0,0.02341459]
[1771166282550,6.862e-05,69124.0,69110.0,4e-05]
[1771166282551,0.16036675,69123.0,69110.0,4e-05]
[1771166282771,0.02365059,69132.0,69111.0,0.02341459]
[1771166282998,0.02365059,69132.0,69117.0,0.16874704]
[1771166283195,0.0001547,69134.0,69118.0,0.02341459]
[1771166283360,0.0001547,69134.0,69114.0,0.07234388]
[1771166283361,0.0001547,69134.0,69120.0,0.02341459]
[1771166284285,0.0001547,69134.0,69122.0,0.02341459]
[1771166284446,0.0001547,69134.0,69122.0,0.16874704]
[1771166284653,0.0001547,69134.0,69123.0,0.02341459]
[1771166285005,0.0001547,69134.0,69126.0,0.02341459]
[1771166287089,0.0001547,69134.0,69127.0,0.16874704]
[1771166287285,0.0001547,69134.0,69128.0,0.02341459]
[1771166288232,0.0001547,69134.0,69132.0,4e-05]
[1771166288442,0.0005547,69134.0,69132.0,4e-05]
[1771166288875,0.02380529,69143.0,69132.0,4e-05]
[1771166288876,0.0001547,69143.0,69132.0,4e-05]
[1771166289049,0.0001547,69151.0,69132.0,4e-05]
[1771166289050,0.0004,69141.0,69133.0,0.02341459]
[1771166289196,0.02405059,69141.0,69132.0,4e-05]
[1771166289405,0.16036675,69139.0,69130.0,8e-05]
[1771166289649,0.02365059,69138.0,69130.0,8e-05]
[1771166289878,0.0004,69141.0,69130.0,8e-05]
[1771166290062,0.0004,69148.0,69133.0,0.02341459]
[1771166290354,0.00052929,69148.0,69139.0,0.07231762]
[1771166290740,0.00052929,69148.0,69139.0,0.07231801]
[1771166291136,0.00052929,69148.0,69140.0,0.07231703]
[1771166291536,0.00052929,69148.0,69141.0,0.07231585]
[1771166291764,0.00052929,69148.0,69140.0,0.07231667]
[1771166292577,0.00052929,69148.0,69141.0,0.07231576]
[1771166292777,0.0002766,69160.0,69135.0,0.16874704]
[1771166292778,0.0002766,69160.0,69142.0,0.02341459]
[1771166293003,0.00034518,69160.0,69146.0,0.02341459]
[1771166293213,0.00034518,69160.0,69147.0,0.02315107]
[1771166294478,0.00034518,69160.0,69140.0,0.07235658]
[1771166294694,0.16120402,69157.0,69140.0,0.07235699]
[1771166294895,0.02402147,69156.0,69141.0,0.02315107]
[1771166298648,0.16120402,69157.0,69141.0,0.02315107]
[1771166298848,0.18597067,69160.0,69142.0,0.02315107]
[1771166299453,0.02402147,69159.0,69140.0,4e-05]
[1771166299664,0.02402147,69157.0,69140.0,4e-05]
[1771166299858,0.16120402,69154.0,69140.0,4e-05]
[1771166300066,0.16120402,69152.0,69140.0,4e-05]
[1771166300258,0.02402147,69151.0,69140.0,4e-05]
[1771166301947,0.00074518,69160.0,69140.0,4e-05]
[1771166302151,0.02402147,69158.0,69140.0,4e-05]
[1771166302386,0.18522549,69156.0,69140.0,4e-05]
[1771166302586,0.1850635,69156.0,69140.0,4e-05]
[1771166302990,0.1850635,69156.0,69141.0,0.02315107]
[1771166303203,0.1850635,69156.0,69150.0,4e-05]
[1771166303571,0.1619492,69160.0,69150.0,4e-05]
[1771166303755,0.18597067,69160.0,69150.0,4e-05]
[1771166304478,0.18597067,69160.0,69144.0,4e-05]
[1771166304479,0.02402147,69159.0,69144.0,4e-05]
[1771166304812,0.00078518,69160.0,69140.0,8e-05]
[1771166304813,0.16120402,69151.0,69140.0,8e-05]
[1771166304985,0.02402147,69153.0,69140.0,8e-05]
[1771166305186,0.02402147,69153.0,69140.0,0.00028]
[1771166305368,4e-05,69154.0,69141.0,0.02315107]
[1771166305875,4e-05,69154.0,69143.0,0.16628974]
[1771166306068,4e-05,69154.0,69144.0,0.02315107]
[1771166306267,4e-05,69154.0,69140.0,0.00028]
[1771166306268,4e-05,69154.0,69146.0,0.02315107]
[1771166306677,0.00044,69156.0,69147.0,0.02315107]
[1771166306988,0.0004,69163.0,69152.0,0.07230243]
[1771166307161,0.0004,69163.0,69155.0,0.02315107]
[1771166307336,0.0004,69163.0,69155.0,0.16628974]
[1771166307522,0.0004,69163.0,69156.0,0.02315107]
[1771166308357,0.00044,69170.0,69153.0,0.16628974]
[1771166308557,4e-05,69180.0,69152.0,6.858e-05]
[1771166308558,4e-05,69180.0,69161.0,0.02315107]
[1771166308756,4e-05,69180.0,69165.0,0.07229023]
[1771166309087,4e-05,69180.0,69167.0,0.0722888]
[1771166309295,4e-05,69180.0,69160.0,4e-05]
[1771166309500,0.00012,69184.0,69171.0,0.16628974]
[1771166309636,0.02402147,69183.0,69170.0,4e-05]
[1771166309841,0.18522549,69183.0,69170.0,4e-05]
[1771166310048,0.16120402,69181.0,69170.0,4e-05]
[1771166310251,0.18522549,69180.0,69170.0,4e-05]
[1771166310470,0.02402147,69180.0,69170.0,4e-05]
[1771166310673,0.00012,69184.0,69172.0,0.07228278]
[1771166310845,0.00012,69184.0,69173.0,0.16628974]